bitfinex/quotes_ETHUSD_20220106
["timestamp","ask_amount","ask_price","bid_price","bid_amount"]
[1641438562172,0.70626381,3498.9,3498.7,1.42985685]
[1641438563976,0.70626381,3498.9,3498.7,0.71549685]
[1641438564578,0.40626381,3498.9,3498.8,10.2150639]
[1641438564878,0.00113684,3499.1,3498.9,7.55]
[1641438565129,0.00113684,3499.1,3499.0,7.895]
[1641438568526,0.00113684,3499.1,3499.0,9.03736824]
[1641438569271,7.443e-05,3499.1,3499.0,7.895]
[1641438569474,7.443e-05,3499.1,3499.0,8.0022]
[1641438569676,7.443e-05,3499.1,3499.0,7.895]
[1641438571879,7.443e-05,3499.1,3499.0,8.303]
[1641438572077,7.443e-05,3499.1,3499.0,1.753]
[1641438572277,7.443e-05,3499.1,3499.0,1.645]
[1641438572477,7.443e-05,3499.1,3499.0,0.7538]
[1641438572728,7.443e-05,3499.1,3499.0,0.753]
[1641438572931,7.443e-05,3499.1,3499.0,0.7522]
[1641438573328,7.443e-05,3499.1,3499.0,0.753]
[1641438573530,7.443e-05,3499.1,3499.0,0.7514]
[1641438573729,7.443e-05,3499.1,3499.0,4.445]
[1641438573930,7.443e-05,3499.1,3498.9,0.8214]
[1641438574129,7.443e-05,3499.1,3498.9,0.7142]
[1641438574930,7.443e-05,3499.1,3498.9,0.8222]
[1641438575133,7.443e-05,3499.1,3498.9,0.8214]
[1641438575331,7.443e-05,3499.1,3498.9,0.7142]
[1641438583328,7.443e-05,3499.1,3498.8,0.7142]
[1641438583725,7.443e-05,3499.1,3498.9,0.00106241]
[1641438584375,7.443e-05,3499.1,3498.8,0.00163084]
[1641438584570,7.443e-05,3499.1,3498.7,0.71435]
[1641438584571,2.5,3499.0,3497.6,1.429]
[1641438584773,2.5,3499.0,3498.4,0.345]
[1641438584774,0.00113685,3499.0,3498.4,0.345]
[1641438585772,0.00113685,3499.0,3498.5,0.71435]
[1641438585974,0.00113685,3499.0,3498.6,0.71435]
[1641438586172,1.34670191,3499.0,3498.6,0.71548684]
[1641438586372,1.34670191,3499.0,3498.6,0.00113684]
[1641438586573,2.52362944,3498.9,3498.6,0.00113684]
[1641438586775,1.64670191,3499.0,3497.8,0.00568423]
[1641438586973,3.920671,3498.9,3497.9,1.42883]
[1641438587173,1.2331,3498.9,3497.9,2.14332]
[1641438587372,1.25839812,3498.4,3498.0,0.00454739]
[1641438589127,0.7144803,3498.8,3498.0,0.71902739]
[1641438589327,1.2331,3498.9,3498.0,0.71902739]
[1641438589529,1.2331,3498.9,3498.1,0.00397896]
[1641438589729,1.2331,3498.9,3498.1,0.71843896]
[1641438590129,1.2331,3498.9,3498.2,0.00341054]
[1641438590729,1.34269898,3498.7,3498.2,0.71786054]
[1641438591133,1.34269898,3498.7,3498.3,0.00284211]
[1641438591967,1.34269898,3498.7,3498.3,0.71729211]
[1641438592170,1.2331,3498.9,3498.3,1.36029211]
[1641438592370,1.2331,3498.9,3498.4,0.00227369]
[1641438593573,1.22484807,3498.8,3498.5,0.00082162]
[1641438593975,1.22484807,3498.8,3498.6,0.00113684]
[1641438593976,1.52484807,3498.8,3498.6,0.00113684]
[1641438595417,2.23936287,3498.8,3498.6,0.00113684]
[1641438597820,1.52484807,3498.8,3498.6,0.00113684]
[1641438598881,1.52484807,3498.8,3498.6,0.64416684]
[1641438599083,1.82484807,3498.8,3498.6,0.00113684]
[1641438600881,2.53939647,3498.8,3498.6,0.00113684]
[1641438602384,1.82484807,3498.8,3498.6,0.00113684]
[1641438602827,1.52484807,3498.8,3498.6,0.00113684]
[1641438604831,2.23943587,3498.8,3498.6,0.00113684]
[1641438605733,10.14779886,3498.7,3498.6,0.00113684]
[1641438605934,19.17546241,3498.7,3498.6,3.684e-05]
[1641438606133,20.17546241,3498.7,3498.6,3.684e-05]
[1641438606572,36.85546241,3498.7,3498.6,3.684e-05]
[1641438606773,36.85546241,3498.7,3496.2,0.64343]
[1641438606774,16.68,3498.5,3496.2,0.64343]
[1641438606972,2.1448229,3497.5,3496.1,3.11761826]
[1641438607171,1.1682,3497.5,3496.3,0.01307374]
[1641438607373,0.3,3497.4,3496.3,0.01307374]
[1641438607776,1.08194923,3496.8,3496.3,0.01307374]
[1641438607978,1.08194923,3496.8,3496.1,2.637192]
[1641438607979,0.3541,3496.5,3496.1,2.637192]
[1641438608178,0.6541,3496.5,3496.1,2.637192]
[1641438608378,0.3541,3496.5,3496.2,2.46165924]
[1641438608579,0.00227369,3496.7,3496.2,0.05045658]
[1641438608777,1.1858,3498.1,3496.4,7.55]
[1641438608979,1.1858,3498.1,3497.7,1.40033482]
[1641438609176,3.891,3498.7,3497.7,1.40033482]
[1641438609574,0.00852635,3498.2,3497.8,0.05045658]
[1641438609977,0.00795793,3498.1,3498.0,0.64307]
[1641438610230,1.35138586,3498.0,3497.0,0.1168]
[1641438610529,0.00682108,3497.9,3496.6,0.05045658]
[1641438610728,0.00682108,3497.9,3496.3,0.00227369]
[1641438610931,0.00625266,3497.8,3496.3,0.00227369]
[1641438611328,0.50568423,3497.7,3496.3,0.00227369]
[1641438611531,1.37111466,3496.7,3496.3,0.00227369]
[1641438611732,1.67111466,3496.7,3496.3,0.00227369]
[1641438611933,1.67111466,3496.7,3496.2,0.00284212]
[1641438612129,1.67111466,3496.7,3496.1,0.00341054]
[1641438612330,1.67111466,3496.7,3495.9,0.00454739]
[1641438613431,0.15719776,3496.7,3495.9,0.00454739]
[1641438613634,0.15719776,3496.7,3495.6,4.739e-05]
[1641438613635,7.55,3496.4,3495.6,4.739e-05]
[1641438613876,7.55,3496.4,3495.7,0.00113684]
[1641438613877,0.71527,3496.2,3495.7,0.00113684]
[1641438614079,0.71527,3496.2,3494.7,1.07923422]
[1641438614080,0.01249676,3495.7,3494.7,1.07923422]
[1641438614280,0.01249676,3495.7,3493.5,0.00332529]
[1641438614281,7.55,3495.5,3493.5,0.00332529]
[1641438614483,1.31467481,3494.0,3493.5,0.00332529]
[1641438614678,2.92646771,3494.0,3493.6,3.85955768]
[1641438614878,0.5962,3494.0,3493.6,2.23055768]
[1641438615081,0.01235113,3493.8,3493.6,2.23055768]
[1641438615680,0.01235113,3493.8,3493.0,6.65073828]
[1641438615880,1.58171594,3492.7,3492.4,5.84531215]
[1641438616080,1.58171594,3492.7,3491.8,2.0]
[1641438616081,0.0656131,3492.4,3491.8,2.0]
[1641438616281,0.26108198,3492.4,3491.5,1.72060276]
[1641438616483,7.55,3492.3,3491.3,13.20823504]
[1641438616783,7.55,3492.3,3491.3,8.67843504]
[1641438616784,0.01205919,3491.9,3491.3,8.67843504]
[1641438616985,0.01205919,3491.9,3490.6,9.0907377]
[1641438617180,0.01205919,3491.9,3487.1,4.29983667]
[1641438617181,0.81085823,3491.3,3489.4,13.96741132]
[1641438617382,0.01228257,3490.5,3489.4,12.76665032]
[1641438617626,0.345,3490.4,3489.4,11.71226115]
[1641438617834,7.5666,3490.3,3489.4,11.71226115]
[1641438618029,7.5666,3490.3,3489.2,17.51315953]
[1641438618030,2.78984096,3490.2,3489.2,17.51315953]
[1641438618232,4.662,3490.2,3490.1,1.0]
[1641438618432,4.962,3490.2,3490.1,1.0]
[1641438618632,0.945,3490.2,3490.1,1.0]
[1641438618834,0.645,3490.2,3490.0,2.0]
[1641438619033,16.68,3491.1,3490.0,4.22307916]
[1641438619236,0.81085823,3491.3,3490.1,2.44484096]
[1641438619436,1.52713823,3491.3,3491.2,1.0]
[1641438619640,0.81085823,3491.3,3491.2,1.0]
[1641438619834,0.81085823,3491.3,3491.2,2.42091725]
[1641438620039,0.81085823,3491.3,3491.2,3.80766111]
[1641438620239,0.81085823,3491.3,3491.2,9.10766111]
[1641438620240,1.08005823,3491.3,3491.2,9.10766111]
[1641438620538,1.08005823,3491.3,3491.2,9.1577757]
[1641438620935,1.08005823,3491.3,3491.2,9.4577757]
[1641438621382,0.345,3495.0,3491.4,8.26122587]
[1641438621587,0.2192,3498.5,3491.4,8.26122587]
[1641438621588,0.71545,3495.6,3495.4,0.14945826]
[1641438621786,2.97196119,3496.1,3495.0,1.05442826]
[1641438621787,0.01245254,3495.5,3495.0,1.05442826]
[1641438621985,0.00170527,3496.0,3495.5,6.16891439]
[1641438622187,0.00170527,3496.0,3495.6,0.66122587]
[1641438622384,6.28849671,3497.4,3495.6,0.66122587]
[1641438622385,0.00113684,3495.9,3495.6,0.66122587]
[1641438622586,0.00113684,3495.9,3495.7,1.28423771]
[1641438622786,0.13819997,3497.1,3495.8,1.00622587]
[1641438622990,0.13819997,3497.1,3495.4,0.33061293]
[1641438622991,1.25160909,3495.8,3495.4,0.33061293]
[1641438623193,0.01215597,3495.6,3495.4,0.33061293]
[1641438623392,7.56206489,3495.5,3495.4,0.33061293]
[1641438623587,0.01206489,3495.5,3495.4,0.33061293]
[1641438623807,0.01206489,3495.5,3495.4,0.33231821]
[1641438624388,0.645,3495.7,3495.4,0.33231821]
[1641438624791,0.645,3495.7,3495.5,0.00113685]
[1641438624989,0.3,3495.7,3495.5,0.00113685]
[1641438625220,1.25160909,3495.8,3495.6,1.28514353]
[1641438625423,1.25160909,3495.8,3495.7,0.33061293]
[1641438626222,1.25160909,3495.8,3495.7,8.91036118]
[1641438627225,1.25160909,3495.8,3495.7,0.33061293]
[1641438628225,0.0073895,3497.0,3495.7,0.33061293]
[1641438628426,0.0073895,3497.0,3495.0,0.02835084]
[1641438628625,0.13819997,3497.1,3495.2,0.1144]
[1641438628626,0.00795793,3496.9,3495.2,0.1144]
[1641438628903,0.00795793,3496.9,3495.1,0.0022737]
[1641438629096,0.0073895,3496.8,3495.4,1.0]
[1641438629296,0.0096632,3496.8,3496.7,1.17281484]
[1641438629498,0.01233858,3497.6,3496.7,1.17281484]
[1641438629897,0.01080005,3497.0,3496.7,1.17281484]
[1641438630101,0.01080005,3497.0,3496.0,1.20227878]
[1641438630102,0.8566,3496.9,3496.0,1.3]
[1641438630298,0.8566,3496.9,3496.8,1.14507781]
[1641438630299,0.86683163,3496.9,3496.8,1.14507781]
[1641438630497,0.86683163,3496.9,3496.8,2.95232896]
[1641438630498,0.8566,3496.9,3496.8,2.95232896]
[1641438630697,0.8566,3496.9,3496.0,1.3]
[1641438630698,0.8566,3496.9,3496.0,0.99327128]
[1641438630899,0.86899308,3496.9,3496.1,0.345]
[1641438631099,0.0096632,3496.8,3496.1,0.345]
[1641438631501,0.00909478,3496.7,3496.2,1.2326798]
[1641438631701,0.00909478,3496.7,3496.2,1.23370991]
[1641438631901,0.8566,3496.9,3496.6,1.02140121]
[1641438632101,0.8566,3496.9,3496.7,0.345]
[1641438632302,0.0096632,3496.8,3496.7,0.345]
[1641438632501,0.0096632,3496.8,3496.7,0.4554]
[1641438632734,10.70015466,3498.0,3496.8,8.4066]
[1641438633129,10.70015466,3498.0,3497.4,0.85318946]
[1641438633331,0.00284212,3497.9,3497.4,0.85318946]
[1641438633731,0.0022737,3497.8,3497.7,1.39995035]
[1641438634236,0.00341054,3497.8,3497.7,4.84995035]
[1641438634531,0.00341054,3497.8,3497.7,5.14995035]
[1641438635131,0.00341054,3497.8,3497.7,4.89995035]
[1641438635731,0.00341054,3497.8,3497.7,1.39995035]
[1641438635933,0.00341054,3497.8,3497.6,0.345]
[1641438636372,0.00170527,3497.7,3497.6,0.345]
[1641438636781,0.00170527,3497.7,3497.3,0.1104]
[1641438636982,0.00170527,3497.7,3496.9,0.00284211]
[1641438636983,1.14631152,3497.7,3496.9,0.00284211]
[1641438637178,1.14631152,3497.7,3496.2,0.00103011]
[1641438637179,2.35494914,3497.6,3497.4,0.00170527]
[1641438637380,2.35494914,3497.6,3496.7,0.00568423]
[1641438637381,0.0122369,3497.3,3496.7,0.00568423]
[1641438637578,0.0122369,3497.3,3496.3,0.00795792]
[1641438637986,1.33972471,3496.4,3496.3,0.00795792]
[1641438638185,8.88972471,3496.4,3496.3,0.00795792]
[1641438638385,9.5609121,3496.4,3496.3,0.00795792]
[1641438638782,0.37118739,3496.4,3496.3,0.00795792]
[1641438638983,0.07118739,3497.0,3496.3,0.00795792]
[1641438639181,0.3,3496.4,3496.3,0.00795792]
[1641438639382,0.645,3497.3,3496.3,0.00795792]
[1641438639784,0.3,3497.3,3496.3,0.00795792]
[1641438639984,0.01283471,3497.4,3496.3,0.00795792]
[1641438640827,0.01283471,3497.4,3496.7,1.14617738]
[1641438641028,0.01283471,3497.4,3496.3,0.00795792]
[1641438641229,0.01283471,3497.4,3496.8,0.00511581]
[1641438641428,0.01283471,3497.4,3496.3,0.00795792]
[1641438642029,1.51694787,3497.1,3496.3,0.00795792]
[1641438642231,0.01283471,3497.4,3496.4,0.00097564]
[1641438642429,0.3,3497.1,3496.4,0.00097564]
[1641438642632,0.345,3497.0,3496.5,0.00682108]
[1641438642838,0.1888,3497.3,3496.5,0.00682108]
[1641438642839,7.56241978,3496.6,3496.5,0.00682108]
[1641438643032,7.86241978,3496.6,3496.5,0.00682108]
[1641438643234,8.16241978,3496.6,3496.5,0.00682108]
[1641438643432,7.86241978,3496.6,3496.5,0.00682108]
[1641438644077,7.85,3496.6,3496.5,0.00682108]
[1641438644278,0.3,3496.6,3496.5,0.00682108]
[1641438644479,1.3,3497.0,3496.5,0.00682108]
[1641438645081,1.3,3497.0,3496.8,1.28746068]
[1641438645282,0.3,3497.0,3496.8,1.28746068]
[1641438645481,0.01202219,3497.6,3496.9,0.00454738]
[1641438645682,5.0,3497.7,3496.9,0.00454738]
[1641438646283,5.0,3497.7,3497.4,1.2230479]
[1641438646684,5.0,3497.7,3497.5,0.00113684]
[1641438647934,5.0,3497.7,3497.6,4.15490723]
[1641438648135,5.3,3497.7,3497.6,1.05490723]
[1641438648737,5.0,3497.7,3497.6,1.05490723]
[1641438648939,5.0,3497.7,3497.6,0.55490723]
[1641438649536,5.0,3497.7,3497.5,0.00113684]
[1641438649936,5.3,3497.7,3497.5,0.00113684]
[1641438650339,5.3,3497.7,3496.7,0.00568423]
[1641438650537,5.3,3497.7,3496.7,1.40537527]
[1641438650937,5.0,3497.7,3497.4,1.3066037]
[1641438651377,5.0,3497.7,3497.5,0.00113684]
[1641438651984,5.0,3497.7,3497.6,4.84607911]
[1641438652183,5.0,3497.7,3497.6,1.14607911]
[1641438652583,5.0,3497.7,3497.5,0.00113684]
[1641438652787,5.0,3497.7,3497.4,0.80774054]
[1641438652985,5.0,3497.7,3497.6,0.00086648]
[1641438653388,5.00113684,3497.7,3497.6,1.50086648]
[1641438655827,5.00113684,3497.7,3497.6,1.45086648]
[1641438656029,5.30113684,3497.7,3497.6,1.45086648]
[1641438659285,5.05113684,3497.7,3497.6,1.45086648]
[1641438659485,5.00113684,3497.7,3497.6,1.45086648]
[1641438659885,9.10113684,3497.7,3497.6,1.45086648]
[1641438660087,5.00113684,3497.7,3497.6,1.45086648]
[1641438661188,5.30113684,3497.7,3497.6,1.45086648]
[1641438661589,12.85113684,3497.7,3495.5,0.1072]
[1641438661786,12.85113684,3497.7,3495.4,1.1673]
[1641438661787,0.01207956,3497.5,3495.4,1.1673]
[1641438661989,0.345,3497.4,3496.0,0.00852635]
[1641438662186,3.40561664,3497.3,3496.0,0.00852635]
[1641438662387,0.345,3497.2,3495.2,0.01307374]
[1641438662626,0.345,3497.2,3495.3,1.35017914]
[1641438662627,3.26420493,3497.1,3495.3,1.35017914]
[1641438662823,1.80535508,3496.9,3495.9,1.09684946]
[1641438663025,0.3,3496.7,3495.9,1.09684946]
[1641438663228,0.3,3496.7,3495.4,0.0119369]
[1641438663229,3.01964907,3496.6,3495.4,0.0119369]
[1641438663428,0.01260859,3495.9,3495.4,0.0119369]
[1641438663630,1.0,3495.6,3494.5,0.01705271]
[1641438663830,1.0,3495.6,3494.1,0.0193264]
[1641438664032,2.1,3495.6,3494.1,0.0193264]
[1641438664232,1.07112388,3495.4,3493.8,0.02103167]
[1641438664431,0.01254439,3495.1,3493.8,0.02103167]
[1641438664630,0.345,3495.0,3493.8,0.02103167]
[1641438664830,16.68,3494.8,3493.8,0.02103167]
[1641438665131,0.7155985,3494.5,3493.8,0.02103167]
[1641438665331,4.76211037,3494.4,3493.8,0.02103167]
[1641438665530,0.3,3494.2,3493.8,0.02103167]
[1641438665732,0.645,3494.3,3493.8,0.02103167]
[1641438665733,0.345,3494.1,3493.8,0.02103167]
[1641438665930,0.345,3494.0,3493.8,0.02103167]
[1641438666130,0.645,3494.0,3493.8,0.02103167]
[1641438666590,0.3,3494.0,3493.8,0.02103167]
[1641438666792,0.345,3494.5,3493.8,0.02103167]
[1641438666990,2.36896113,3494.4,3493.8,0.02103167]
[1641438667190,2.32285419,3494.4,3493.8,0.02103167]
[1641438667390,0.6,3494.4,3493.8,0.02103167]
[1641438667591,0.7155802,3494.3,3493.8,0.02103167]
[1641438667794,2.38381981,3494.2,3493.8,1.42867963]
[1641438667996,1.0155802,3494.3,3493.8,1.40764796]
[1641438668198,0.3,3494.3,3493.9,0.02046325]
[1641438668499,7.43455434,3494.9,3493.9,0.02046325]
[1641438668500,5.0,3494.0,3493.9,0.02046325]
[1641438668696,2.939,3494.0,3493.9,7.57046325]
[1641438668894,6.16634677,3494.9,3493.9,7.57046325]
[1641438668895,6.16634677,3494.9,3494.0,7.55]
[1641438669097,6.16634677,3494.9,3494.0,7.85]
[1641438669401,6.16634677,3495.0,3494.8,1.28645224]
[1641438669597,6.16634677,3495.0,3494.1,0.0193264]
[1641438669797,6.16634677,3495.0,3493.3,0.345]
[1641438669798,6.16634677,3495.0,3494.9,0.01477901]
[1641438669996,6.16634677,3495.0,3493.9,0.02046325]
[1641438670237,6.16634677,3495.0,3493.4,0.13130536]
[1641438670433,6.16634677,3495.0,3493.5,0.02273694]
[1641438670434,2.63359432,3494.9,3493.5,0.02273694]
[1641438670634,2.63359432,3494.9,3493.5,1.19044109]
[1641438670635,1.18959883,3494.5,3493.5,1.19044109]
[1641438670937,1.18959883,3494.5,3493.6,0.02216852]
[1641438670938,0.0126669,3494.2,3493.6,0.02216852]
[1641438671135,0.345,3494.1,3493.6,0.02216852]
[1641438671336,0.345,3494.1,3492.4,0.0289896]
[1641438671536,0.5,3493.9,3492.3,0.02955802]
[1641438671735,2.33359432,3493.8,3492.3,0.02955802]
[1641438671939,1.31561664,3493.2,3492.3,0.02955802]
[1641438672135,0.71582,3493.6,3492.3,0.02955802]
[1641438672136,0.7157695,3493.3,3492.3,0.02955802]
[1641438672337,0.3,3493.6,3492.3,0.02955802]
[1641438672539,0.345,3495.1,3492.6,0.64395]
[1641438672836,0.345,3495.1,3492.7,0.02728433]
[1641438672837,6.16634677,3494.2,3492.7,0.02728433]
[1641438673035,6.16634677,3494.2,3493.4,1.42122242]
[1641438673236,6.16634677,3494.2,3492.2,2.74411079]
[1641438673237,6.16634677,3494.2,3492.3,0.02955802]
[1641438673437,6.16634677,3494.2,3493.5,0.02273694]
[1641438673639,6.16634677,3494.2,3492.3,0.02955802]
[1641438673877,7.16634677,3494.2,3492.3,0.02955802]
[1641438674076,7.46634677,3494.2,3492.3,0.02955802]
[1641438674281,1.49104561,3492.5,3492.3,0.02955802]
[1641438674487,1.0152,3492.5,3492.4,0.00137076]
[1641438674683,1.3152,3492.5,3492.4,0.00137076]
[1641438674885,1.3152,3492.5,3492.4,0.03036036]
[1641438675484,0.3,3492.5,3492.4,0.03036036]
[1641438675985,0.7157804,3493.1,3492.4,0.03036036]
[1641438676384,1.0157804,3493.1,3492.5,0.02842118]
[1641438677186,0.7157051,3493.4,3492.5,0.02842118]
[1641438677386,1.43147,3493.7,3493.2,1.22173472]
[1641438677654,0.13819997,3494.1,3493.2,1.22173472]
[1641438677838,0.13819997,3494.1,3493.3,0.02387379]
[1641438678642,0.13819997,3494.1,3492.4,0.00137076]
[1641438678643,0.13819997,3494.1,3492.5,0.02842118]
[1641438679242,0.7156909,3493.6,3492.5,0.02842118]
[1641438679442,1.43162,3493.7,3492.5,0.02842118]
[1641438679646,0.3,3493.6,3492.5,0.02842118]
[1641438680444,0.3,3493.6,3492.5,1.47344602]
[1641438680445,0.7157996,3493.1,3492.5,1.47344602]
[1641438680845,1.0157996,3493.1,3492.6,0.02785275]
[1641438681383,0.13819997,3494.1,3492.6,0.02785275]
[1641438681783,0.01236859,3494.7,3493.8,1.0687116]
[1641438681987,1.39509997,3495.0,3493.8,1.0687116]
[1641438682186,1.39509997,3495.0,3493.9,0.02046325]
[1641438682883,1.39509997,3495.0,3494.6,1.14603401]
[1641438683085,1.39509997,3495.0,3494.5,1.01082675]
[1641438683286,1.39509997,3495.0,3494.7,0.01591586]
[1641438683485,1.39509997,3495.0,3494.6,0.01648428]
[1641438683684,2.11050987,3495.0,3493.2,0.02444221]
[1641438684283,2.11050987,3495.0,3493.1,0.02501063]
[1641438684486,3.20100832,3495.0,3494.1,1.15565998]
[1641438684688,3.20100832,3495.0,3493.7,1.29063277]
[1641438684689,0.7154653,3494.7,3493.1,0.02501063]
[1641438684889,0.72839981,3494.8,3494.2,0.01875798]
[1641438685132,0.72839981,3494.8,3492.4,0.11177076]
[1641438685133,0.01286981,3494.8,3493.1,0.02501063]
[1641438685334,0.01286981,3494.8,3492.4,2.86206249]
[1641438685335,0.3,3494.5,3492.5,0.02842118]
[1641438685533,0.5,3494.7,3493.2,0.00126149]
[1641438685835,0.7156552,3493.7,3493.3,0.02387379]
[1641438686235,1.0156552,3493.7,3493.3,0.02387379]
[1641438686436,0.3,3493.7,3493.3,0.02387379]
[1641438686635,0.3,3494.0,3493.3,0.02387379]
[1641438686839,1.0156063,3494.0,3493.3,0.02387379]
[1641438687243,1.0156063,3494.0,3493.0,0.97695845]
[1641438687447,0.00341054,3493.9,3493.0,0.97695845]
[1641438687641,0.00341054,3493.9,3493.1,0.00113684]
[1641438687940,0.00284212,3493.8,3492.2,0.00625266]
[1641438688340,0.0022737,3493.7,3492.2,0.00625266]
[1641438688540,0.0022737,3493.7,3492.7,1.25298739]
[1641438688741,0.00170527,3493.6,3492.7,1.25298739]
[1641438688984,0.00170527,3493.6,3492.8,0.00284212]
[1641438689184,0.00113685,3493.5,3492.9,1.51356276]
[1641438689585,0.00113685,3493.5,3493.0,0.00170527]
[1641438690085,0.00113685,3493.5,3491.9,0.00795793]
[1641438690286,0.71582,3493.2,3491.9,0.00795793]
[1641438690494,3.09429103,3493.1,3491.9,0.00795793]
[1641438690686,3.09429103,3493.1,3491.4,0.01080004]
[1641438690887,3.09429103,3493.1,3492.1,1.41682381]
[1641438690888,4.60606843,3493.1,3492.1,1.41682381]
[1641438691089,0.71582,3493.2,3492.1,1.41682381]
[1641438691290,0.00113685,3493.5,3492.2,0.00625266]
[1641438691689,0.00113685,3493.5,3492.2,0.72184266]
[1641438691889,0.00113685,3493.5,3492.2,0.00625266]
[1641438692190,0.00113685,3493.5,3493.0,1.3154213]
[1641438693843,0.00113685,3493.5,3492.7,1.41852587]
[1641438694044,5.00113685,3493.5,3492.7,1.41852587]
[1641438694245,5.00113685,3493.5,3492.8,0.00284212]
[1641438694246,5.30113685,3493.5,3492.8,0.00284212]
[1641438694644,5.30113685,3493.5,3492.2,0.00625266]
[1641438694850,5.30113685,3493.5,3492.9,1.49718713]
[1641438695249,5.30113685,3493.5,3493.0,0.00170527]
[1641438696246,5.30113685,3493.5,3493.1,0.00123031]
[1641438699781,2.95,3493.4,3492.2,0.345]
[1641438700233,0.00170527,3493.3,3492.3,0.00397896]
[1641438700628,0.00113685,3493.2,3492.9,1.19781132]
[1641438701033,0.0022737,3493.4,3492.7,1.20963562]
[1641438701233,0.0022737,3493.4,3492.3,0.00397896]
[1641438701432,0.0022737,3493.4,3491.5,2.56875]
[1641438701433,0.7157941,3493.1,3492.8,0.00113685]
[1641438701833,1.0157941,3493.1,3491.8,0.00682108]
[1641438702032,1.0157941,3493.1,3491.0,2.44196022]
[1641438702033,1.25447005,3493.0,3492.0,1.30825794]
[1641438702432,0.71578,3492.9,3492.1,0.00511581]
[1641438702633,0.00263395,3492.5,3492.1,0.00511581]
[1641438702837,0.00170527,3493.3,3492.1,0.00511581]
[1641438703237,0.00113685,3493.2,3492.1,0.00511581]
[1641438703438,0.71574,3493.1,3492.7,1.32193416]
[1641438703879,0.00170527,3493.3,3492.8,0.00113685]
[1641438704279,0.00113685,3493.2,3492.0,0.00568423]
[1641438704578,5.0,3493.5,3492.0,0.00568423]
[1641438704579,0.71569,3493.3,3492.0,0.00568423]
[1641438704778,2.36640084,3493.2,3492.0,0.00568423]
[1641438704979,2.36753769,3493.2,3492.0,0.00568423]
[1641438705179,1.2659546,3492.9,3492.0,0.00568423]
[1641438705382,2.36753769,3493.2,3492.0,0.00568423]
[1641438705579,0.00113685,3493.2,3492.0,0.00568423]
[1641438705984,0.00113685,3493.2,3492.0,0.35068423]
[1641438706188,2.32759847,3493.2,3492.0,0.35068423]
[1641438706384,3.04335417,3493.2,3492.1,0.00511581]
[1641438706584,3.04335417,3493.2,3492.1,0.00629833]
[1641438706585,0.71574,3493.1,3492.1,0.00629833]
[1641438706786,1.01574,3493.1,3492.1,0.00629833]
[1641438706986,1.01574,3493.1,3492.2,0.00454739]
[1641438708233,1.01574,3493.1,3492.5,1.49843095]
[1641438708633,1.01574,3493.1,3492.6,0.00227369]
[1641438709536,2.33665793,3493.0,3492.6,0.00227369]
[1641438709737,2.32756022,3493.0,3492.6,0.00227369]
[1641438709937,0.71579,3492.9,3492.2,0.00454739]
[1641438710539,0.00113685,3493.2,3492.3,0.345]
[1641438710738,0.00113685,3493.2,3492.3,1.0605707]
[1641438710938,0.00113685,3493.2,3492.6,1.29474178]
[1641438711379,0.00113685,3493.2,3492.7,0.00170527]
[1641438711780,0.00113685,3493.2,3492.4,0.00341054]
[1641438712581,0.71572,3493.1,3492.4,0.00341054]
[1641438712981,0.3,3493.1,3492.4,0.00341054]
[1641438713393,0.30113685,3493.2,3492.2,0.00454739]
[1641438713584,0.71577,3492.9,3492.2,0.00454739]
[1641438713785,0.7158278,3492.8,3492.2,0.00454739]
[1641438714184,0.3,3492.7,3492.2,0.00454739]
[1641438715331,1.00113685,3493.2,3492.4,1.08549855]
[1641438715530,0.00113685,3493.2,3492.4,1.08549855]
[1641438715734,0.00113685,3493.2,3492.5,0.00284212]
[1641438715930,0.00113685,3493.2,3492.7,1.00367643]
[1641438716334,0.71571,3493.1,3492.8,0.00113685]
[1641438716732,0.00113685,3493.2,3492.8,0.00113685]
[1641438716933,0.3,3493.1,3492.8,0.00113685]
[1641438717133,0.00113685,3493.2,3492.8,0.00113685]
[1641438717335,0.71683685,3493.2,3492.9,0.00113455]
[1641438717534,1.01683685,3493.2,3492.9,0.00113455]
[1641438717734,0.30113685,3493.2,3492.9,0.00113455]
[1641438718036,0.00113685,3493.2,3492.9,0.00113455]
[1641438718878,0.00113685,3493.2,3493.0,1.45249465]
[1641438719278,0.00113685,3493.2,3492.9,0.00113455]
[1641438720079,0.00113685,3493.2,3493.0,0.345]
[1641438720278,0.00113685,3493.2,3493.0,1.1545]
[1641438720477,0.00113685,3493.2,3493.0,1.15187216]
[1641438721090,0.00113685,3493.2,3493.1,7.63045547]
[1641438721286,0.00113685,3493.2,3493.1,2.87545547]
[1641438722087,0.13819997,3495.0,3493.2,7.5]
[1641438722290,3.7836,3495.3,3493.3,0.345]
[1641438722488,2.32756022,3495.2,3493.9,0.7153]
[1641438722737,0.01297765,3494.7,3493.2,0.1096]
[1641438722939,1.51629649,3494.5,3492.8,1.43085]
[1641438723140,1.51629649,3494.5,3493.1,2.48045547]
[1641438723544,0.3,3494.5,3493.1,2.48045547]
[1641438723742,0.00795793,3494.6,3493.1,2.82545547]
[1641438723942,0.00795793,3494.6,3493.3,1.43074]
[1641438724143,0.0073895,3494.5,3493.3,1.43074]
[1641438724542,0.13819997,3495.1,3493.9,1.51142167]
[1641438724543,0.00682108,3494.4,3493.9,1.51142167]
[1641438724744,0.00682108,3494.4,3493.3,1.43074]
[1641438724942,0.00625266,3494.3,3493.3,1.43074]
[1641438725344,0.00568423,3494.2,3493.7,1.82902261]
[1641438725746,0.00511581,3494.1,3493.7,1.82902261]
[1641438726249,0.00454739,3494.0,3493.7,1.82902261]
[1641438726479,0.00454739,3494.0,3493.8,1.14040555]
[1641438726680,0.00397896,3493.9,3493.8,1.14040555]
[1641438728182,0.00397896,3493.9,3493.8,4.14141715]
[1641438728383,0.00397896,3493.9,3493.8,0.0010116]
[1641438729989,3.05397896,3493.9,3493.8,0.0010116]
[1641438730263,3.35397896,3493.9,3493.8,0.0010116]
[1641438731065,0.30397896,3493.9,3493.8,0.0010116]
[1641438731864,0.00397896,3493.9,3493.8,0.0010116]
[1641438733673,0.00397896,3493.9,3493.8,1.34901513]
[1641438733890,0.00397896,3493.9,3493.8,2.11941513]
[1641438734082,0.00397896,3493.9,3493.8,8.96941513]
[1641438734480,0.00397896,3493.9,3493.8,9.96941513]
[1641438735485,0.00397896,3493.9,3493.8,3.11941513]
[1641438735888,0.00397896,3493.9,3493.8,3.41941513]
[1641438736590,0.00181345,3493.9,3493.8,9.31941513]
[1641438736788,0.00181345,3493.9,3493.8,3.41941513]
[1641438738836,0.00181345,3493.9,3493.8,3.11941513]
[1641438739035,0.00181345,3493.9,3493.8,2.11941513]
[1641438740037,0.00181345,3493.9,3493.8,3.41941513]